bitfinex-derivatives/quotes_ETHF0:USTF0_20251024
["timestamp","ask_amount","ask_price","bid_price","bid_amount"]
[1761302208123,0.00302699,3956.0,3955.9,5.4549]
[1761302208323,0.00302699,3956.0,3955.9,14.4309]
[1761302216523,0.34092699,3956.0,3955.9,5.4549]
[1761302216826,0.34092699,3956.0,3955.9,14.4289]
[1761302217231,0.48102699,3956.0,3955.9,14.4289]
[1761302217521,0.34092699,3956.0,3955.9,14.4289]
[1761302217716,0.48102699,3956.0,3955.9,14.4289]
[1761302223231,0.48102699,3956.0,3955.9,15.10745691]
[1761302224129,0.48102699,3956.0,3955.9,15.10645691]
[1761302225331,0.48102699,3956.0,3955.9,14.4279]
[1761302227431,0.48102699,3956.0,3955.9,15.33551579]
[1761302227631,0.48102699,3956.0,3955.9,14.4279]
[1761302228231,0.00302699,3956.0,3955.9,9.4279]
[1761302228431,1.89151503,3956.2,3956.1,0.45488]
[1761302228632,1.89151503,3956.2,3956.1,2.27176158]
[1761302228831,1.0891,3956.2,3956.1,2.27176158]
[1761302229434,1.09176184,3956.2,3956.1,2.27176158]
[1761302229831,1.09176184,3956.2,3956.1,0.45488]
[1761302230741,0.00266184,3956.2,3956.1,0.45488]
[1761302231242,0.00266184,3956.2,3956.1,2.27155506]
[1761302231737,0.00266184,3956.2,3956.1,0.45488]
[1761302232637,0.8023,3956.5,3956.4,0.45484]
[1761302232839,0.8023,3956.5,3956.4,14.44959884]
[1761302233139,0.8023,3956.5,3956.4,12.63364]
[1761302233340,1.089,3956.7,3956.4,12.63364]
[1761302233341,1.089,3956.7,3956.6,0.45482]
[1761302233639,0.3446,3956.9,3956.8,0.4548]
[1761302233830,0.3446,3956.9,3956.8,14.44873956]
[1761302234035,0.3446,3956.9,3956.8,12.6336]
[1761302234540,0.34715613,3956.9,3956.8,12.6336]
[1761302235729,0.78595613,3956.9,3956.8,3.6626]
[1761302235933,0.78595613,3956.9,3956.8,12.6326]
[1761302236133,0.78595613,3956.9,3956.8,13.99245781]
[1761302236334,0.78595613,3956.9,3956.8,5.02245781]
[1761302236543,0.78595613,3956.9,3956.8,13.99245781]
[1761302236737,0.78595613,3956.9,3956.8,4.56765781]
[1761302236935,0.78595613,3956.9,3956.8,12.6326]
[1761302237238,0.78595613,3956.9,3956.8,13.31256383]
[1761302237638,0.78595613,3956.9,3956.8,3.2078]
[1761302237835,0.78595613,3956.9,3956.8,12.1778]
[1761302238232,1.24074613,3956.9,3956.8,3.2078]
[1761302238541,1.24074613,3956.9,3956.8,8.969]
[1761302239838,0.7834,3956.7,3956.6,0.45482]
[1761302240037,0.7834,3956.7,3956.6,9.42382]
[1761302240545,0.7834,3956.7,3956.6,0.45482]
[1761302240737,0.7834,3956.7,3956.6,9.42382]
[1761302244142,0.7834,3956.7,3956.6,10.10378383]
[1761302244444,0.556,3956.7,3956.6,10.10378383]
[1761302245050,0.556,3956.7,3956.6,9.42382]
[1761302245444,0.7834,3956.7,3956.6,0.45482]
[1761302245652,0.7834,3956.7,3956.6,9.42382]
[1761302249861,0.7834,3956.7,3956.6,9.42282]
[1761302250865,0.7834,3956.7,3956.6,10.10278383]
[1761302251060,0.7834,3956.7,3956.6,10.10325816]
[1761302253767,0.7834,3956.7,3956.6,1.13525816]
[1761302254070,0.7834,3956.7,3956.6,10.10325816]
[1761302254664,0.7834,3956.7,3956.6,1.13525816]
[1761302254866,0.7834,3956.7,3956.6,10.10325816]
[1761302255066,0.7834,3956.7,3956.6,9.42282]
[1761302264273,0.7834,3956.7,3956.6,10.32937102]
[1761302265075,0.7834,3956.7,3956.6,1.36137102]
[1761302265279,0.7834,3956.7,3956.6,10.32737102]
[1761302266169,0.88604215,3956.7,3956.6,9.42082]
[1761302267774,0.88604215,3956.7,3956.6,0.45482]
[1761302267968,0.88604215,3956.7,3956.6,9.42082]
[1761302268180,0.88604215,3956.7,3956.6,0.45482]
[1761302268387,0.88604215,3956.7,3956.6,9.42082]
[1761302269078,0.88604215,3956.7,3956.6,0.45482]
[1761302269278,0.766,3956.4,3956.3,0.90973719]
[1761302269573,0.766,3956.2,3956.1,0.45488]
[1761302269776,0.766,3956.1,3956.0,1.81474781]
[1761302269976,0.766,3956.1,3956.0,10.77974781]
[1761302270178,0.766,3956.1,3955.6,1.13733]
[1761302270179,0.3191,3955.8,3955.7,1.35985781]
[1761302270373,0.54953597,3955.8,3955.7,9.41992]
[1761302270768,0.86863597,3955.8,3955.7,9.41992]
[1761302271384,0.86863597,3955.8,3955.7,9.42092]
[1761302271783,0.86863597,3955.8,3955.7,9.41992]
[1761302272184,0.766,3955.8,3955.7,9.41992]
[1761302272484,0.766,3955.8,3955.7,8.965]
[1761302272672,1.32335982,3955.8,3955.7,8.965]
[1761302272879,1.32335982,3955.8,3955.4,3.2078]
[1761302272880,0.9021,3955.5,3955.4,3.2078]
[1761302273081,0.9021,3955.5,3955.4,12.1738]
[1761302273278,0.9021,3955.5,3955.4,3.2078]
[1761302273474,0.9021,3955.5,3955.4,12.1738]
[1761302273674,0.9021,3955.5,3955.4,12.62875]
[1761302273980,0.689,3955.5,3955.4,12.62875]
[1761302274585,0.689,3955.5,3955.4,3.66275]
[1761302274784,0.689,3955.5,3955.4,12.62875]
[1761302275083,0.9021,3955.5,3955.4,12.62875]
[1761302279189,0.9021,3955.5,3955.4,3.66275]
[1761302279383,0.9021,3955.5,3955.4,12.62875]
[1761302280091,0.9021,3955.5,3955.4,3.66275]
[1761302280286,0.9021,3955.5,3955.4,12.62875]
[1761302283093,0.9021,3955.5,3955.4,9.42095]
[1761302283291,0.9021,3955.5,3955.4,9.41995]
[1761302284392,1.35705,3955.5,3955.4,8.965]
[1761302284593,1.35705,3955.5,3955.4,9.41996]
[1761302285090,1.35705,3955.5,1275.8,5.02863109]
[1761302285091,0.551,3954.7,3954.3,1.39134301]
[1761302285297,1.21917,3954.4,3954.3,0.0314852]
[1761302285683,1.21917,3954.4,3954.3,7.37372615]
[1761302285684,1.32136615,3954.4,3954.3,7.37372615]
[1761302286389,0.7641,3953.8,3953.7,0.45515]
[1761302286596,0.7641,3953.4,3953.3,3.2078]
[1761302286785,0.76618279,3953.4,3953.3,12.17488413]
[1761302287495,0.76618279,3953.4,3953.3,12.63008413]
[1761302289196,0.76618279,3953.4,3953.3,3.66508413]
[1761302289494,0.76618279,3953.4,3953.3,12.63208413]
[1761302294892,0.53838279,3953.4,3953.3,12.63208413]
[1761302295096,0.32528279,3953.4,3953.3,12.63208413]
[1761302299795,0.32528279,3953.4,3953.3,17.63208413]
[1761302299796,0.00208279,3953.4,3953.3,17.63208413]
[1761302299996,0.1282,3953.5,3953.4,0.45519]
[1761302300205,0.4514,3953.5,3953.4,0.45519]
[1761302300906,0.45430787,3953.5,3953.4,0.45519]
[1761302306506,0.89520787,3953.5,3953.4,0.45519]
[1761302306708,0.89520787,3953.5,3953.4,9.42119]
[1761302307711,0.89520787,3953.5,3953.4,0.45519]
[1761302307909,0.89520787,3953.5,3953.4,9.42119]
[1761302308303,0.89520787,3953.5,3953.4,0.45519]
[1761302308601,0.89520787,3953.5,3953.4,9.42119]
[1761302312219,0.89520787,3953.5,3953.4,0.45519]
[1761302312414,0.89520787,3953.5,3953.4,9.42119]
[1761302312707,0.66740787,3953.5,3953.4,9.42119]
[1761302312908,0.45430787,3953.5,3953.4,9.42119]
[1761302313601,0.45430787,3953.5,3953.4,10.32407888]
[1761302314210,0.45430787,3953.5,3953.4,9.42119]
[1761302315209,0.45430787,3953.5,3953.4,10.78104781]
[1761302317710,0.45430787,3953.5,3953.4,9.42119]
[1761302321209,0.45430787,3953.5,3953.4,0.45519]
[1761302321415,0.45430787,3953.5,3953.4,9.42019]
[1761302324914,0.45430787,3953.5,3953.4,9.41919]
[1761302326319,0.1282,3954.0,3953.6,0.45517]
[1761302326523,0.1282,3954.0,3953.9,3.2078]
[1761302327326,0.13085198,3954.0,3953.9,3.2078]
[1761302327526,0.13085198,3954.0,3953.9,3.66293]
[1761302328419,0.45385198,3954.0,3953.9,3.66293]
[1761302331024,0.67205198,3954.0,3953.9,3.66293]
[1761302331229,0.67205198,3954.0,3953.9,13.98795328]
[1761302331230,0.88305198,3954.0,3953.9,13.98795328]
[1761302335733,0.45385198,3954.0,3953.9,13.98795328]
[1761302336134,0.45385198,3954.0,3953.9,5.02595328]
[1761302336336,0.45385198,3954.0,3953.9,13.98795328]
[1761302336933,0.67205198,3954.0,3953.9,13.98795328]
[1761302337836,0.45385198,3954.0,3953.9,13.98795328]
[1761302339233,0.45385198,3954.0,3953.9,12.62493]
[1761302343043,0.88495198,3954.0,3953.9,12.62293]
[1761302345338,0.88495198,3954.0,3953.9,13.5319703]
[1761302345525,0.88495198,3954.0,3953.9,12.62293]
[1761302348645,0.45385198,3954.0,3953.9,12.62293]
[1761302350536,0.88495198,3954.0,3953.9,12.62193]
[1761302350741,0.88495198,3954.0,3953.9,13.98570377]
[1761302351842,0.45385198,3954.0,3953.9,12.62193]
[1761302352839,0.88495198,3954.0,3953.9,13.98583546]
[1761302353239,0.88495198,3954.0,3953.9,13.98586909]
[1761302354239,0.88495198,3954.0,3953.9,12.62193]
[1761302354441,0.88495198,3954.0,3953.9,3.66293]
[1761302354640,0.88495198,3954.0,3953.9,13.98498899]
[1761302355547,0.66505198,3954.0,3953.9,13.98498899]
[1761302355747,0.45385198,3954.0,3953.9,12.62093]
[1761302358044,0.00265198,3954.0,3953.9,12.62093]
[1761302359946,0.1282,3954.5,3954.1,1.13777]
[1761302360251,0.1282,3954.5,3954.4,3.66288]
[1761302360949,0.13114664,3954.5,3954.4,3.66288]
[1761302361949,0.46904664,3954.5,3954.4,3.66288]
[1761302362546,0.00294664,3954.5,3954.4,3.66288]
[1761302363051,0.00294664,3954.5,3954.4,5.48088197]
[1761302363244,0.00294664,3954.5,3954.4,3.66288]
[1761302366348,0.3379,3954.9,3954.8,0.45503]
[1761302366549,0.3379,3954.9,3954.8,12.61883]
[1761302366955,0.5491,3954.9,3954.8,12.61883]
[1761302367354,0.55211032,3954.9,3954.8,12.61883]
[1761302368750,0.55211032,3954.9,3954.8,9.41103]
[1761302368958,0.34091032,3954.9,3954.8,12.61883]
[1761302369454,0.34091032,3954.9,3954.8,12.82496708]
[1761302370258,0.34091032,3954.9,3954.8,13.73184648]
[1761302370553,0.34091032,3954.9,3954.8,12.82496708]
[1761302371055,0.34091032,3954.9,3954.8,14.18585155]
[1761302371252,0.34091032,3954.9,3954.8,14.18505007]
[1761302371554,0.34091032,3954.9,3954.8,12.82496708]
[1761302372351,0.34091032,3954.9,3954.8,14.1847555]
[1761302373154,0.55641032,3954.9,3954.8,14.1847555]
[1761302373748,0.78961032,3954.9,3954.8,5.02261842]
[1761302374154,0.78961032,3954.9,3954.8,3.2078]
[1761302374359,0.78961032,3954.9,3954.8,12.61583]
[1761302380956,1.34863818,3954.9,3954.8,3.2078]
[1761302381155,5.89361818,3954.9,3954.8,12.1608]
[1761302381359,6.34863818,3954.9,3954.8,3.2078]
[1761302381666,6.34863818,3954.9,3954.8,12.61584]
[1761302382660,6.34863818,3954.9,3954.8,12.61484]
[1761302383768,5.89361818,3954.9,3954.8,12.61584]
[1761302383970,5.89361818,3954.9,3954.8,3.66284]
[1761302384167,5.89361818,3954.9,3954.8,12.61484]
[1761302385470,5.89364955,3954.9,3954.8,12.61484]
[1761302385773,5.78961032,3954.9,3954.8,12.61484]
[1761302385967,5.89366448,3954.9,3954.8,12.61484]
[1761302386162,0.89366448,3954.9,3954.8,12.61484]
[1761302393977,1.34869448,3954.9,3954.8,12.61484]
[1761302394174,1.34869448,3954.9,3954.8,12.1598]
[1761302394878,1.34869448,3954.9,3954.8,12.1588]
[1761302395277,1.34869448,3954.9,3954.8,3.2078]
[1761302395278,6.34869448,3954.9,3954.8,3.2078]
[1761302399672,6.34869448,3954.9,3954.8,2.8848]
[1761302400970,6.34869448,3954.9,3954.8,1.27634529]
[1761302401275,6.34869448,3954.9,3954.8,0.92494529]
[1761302401482,0.4448,3953.6,3953.3,1.02514546]
[1761302401676,1.37569,3953.5,3953.4,2.224]
[1761302401873,1.4797491,3953.5,3953.4,2.4538]
[1761302402074,1.4797491,3953.5,3953.4,3.0208]
[1761302402377,0.5592491,3953.5,3953.4,3.476]
[1761302402583,0.1040591,3953.5,3953.4,3.476]
[1761302402981,0.1040591,3953.5,3953.4,1.252]
[1761302403183,0.1040591,3953.5,3953.4,10.202]
[1761302403877,1.3488491,3953.5,3953.4,0.7968]
[1761302404079,1.3488491,3953.5,3953.4,9.7478]
[1761302404574,1.3488491,3953.5,3953.4,10.203]
[1761302404773,0.8936591,3953.5,3953.4,10.203]
[1761302405181,1.3488491,3953.5,3953.4,1.252]
[1761302405382,1.3488491,3953.5,3953.4,10.203]
[1761302406178,0.1040591,3953.5,3953.4,10.203]
[1761302406380,1.02966,3953.8,3953.7,0.7968]
[1761302406578,1.13360071,3953.8,3953.7,0.7968]
[1761302407184,0.10394071,3953.8,3953.7,1.25197]
[1761302407977,0.45515,3953.9,3953.8,0.45516]
[1761302408282,0.55909324,3953.9,3953.8,10.20296]
[1761302410282,0.10394324,3953.9,3953.8,10.20296]
[1761302412284,0.45514,3954.0,3953.9,0.5719]
[1761302412486,0.45514,3954.0,3953.9,0.7968]
[1761302412487,0.55909449,3954.0,3953.9,0.7968]
[1761302413278,0.45514,3954.0,3953.9,0.7968]
[1761302415177,0.3448,3954.1,3954.0,0.45513]
[1761302415382,0.10409632,3954.1,3954.0,1.38123]
[1761302415577,0.55921632,3954.1,3954.0,1.38123]
[1761302415782,0.55921632,3954.1,3954.0,0.9261]
[1761302416090,1.13371632,3954.1,3954.0,0.9261]
[1761302416884,1.34881632,3954.1,3954.0,0.9261]
[1761302417181,1.34881632,3954.1,3954.0,1.38123]
[1761302417784,0.67859632,3954.1,3954.0,1.38123]
[1761302417985,0.10409632,3954.1,3954.0,1.38123]
[1761302419288,0.89369632,3954.1,3953.8,8.951]
[1761302419496,1.24477,3953.7,3953.6,0.4547]
[1761302419689,1.24477,3953.7,3953.6,9.4047]
[1761302419992,1.24477,3953.7,3953.6,1.25198]
[1761302420194,1.24477,3953.7,3953.6,10.20198]
[1761302421688,1.24477,3953.7,3953.6,1.25198]
[1761302421890,1.24477,3953.7,3953.6,10.16198]
[1761302422701,1.24477,3953.7,3953.6,9.7068]
[1761302423704,1.24477,3953.7,3953.6,0.7968]
[1761302424202,1.34899213,3953.7,3953.6,9.2188]
[1761302424600,1.34899213,3953.7,3953.6,9.7458]
[1761302425595,1.34899213,3953.7,3953.6,1.25198]
[1761302425801,1.34899213,3953.7,3953.6,10.20098]
[1761302426395,1.34899213,3953.7,3953.6,10.05098]
[1761302427297,1.34899213,3953.7,3953.6,1.10198]
[1761302427503,1.34899213,3953.7,3953.6,10.05098]
[1761302427705,1.34899213,3953.7,3953.6,9.5958]
[1761302428203,0.67872213,3953.7,3953.6,1.10198]
[1761302428404,0.67872213,3953.7,3953.6,10.05098]
[1761302428996,0.10422213,3953.7,3953.6,10.73194133]
[1761302429209,0.10422213,3953.7,3953.6,10.05098]
[1761302432808,0.10422213,3953.7,3953.6,10.95759103]
[1761302433497,0.10422213,3953.7,3953.6,10.05098]
[1761302434507,0.45511,3954.3,3954.2,0.7698]
[1761302434707,0.55958686,3954.3,3954.2,9.7178]
[1761302434910,0.88368686,3954.3,3954.2,9.7178]
[1761302435713,1.23512,3954.1,3954.0,0.68233725]
[1761302435904,1.23515,3953.9,3953.8,0.68233725]
[1761302436211,1.23516,3953.8,3953.7,0.2272]
[1761302436412,1.33963686,3953.8,3953.7,9.85653725]
[1761302436715,1.33963686,3953.8,3953.7,9.1742]
[1761302439704,0.4552,3953.4,3953.3,1.00752138]
[1761302439911,1.33967686,3953.4,3953.3,0.22928413]
[1761302440113,1.33967686,3953.4,3953.3,7.76408413]
[1761302440713,1.33967686,3953.4,3953.3,8.94908413]
[1761302441307,1.33967686,3953.4,3953.3,9.17628413]
[1761302442211,1.33967686,3953.4,3953.3,0.22928413]
[1761302443115,1.33967686,3953.4,3953.3,0.77188413]
[1761302446818,1.33967686,3953.4,3953.3,1.22709413]
[1761302449016,1.11107686,3953.4,3953.3,1.22709413]
[1761302450415,1.33967686,3953.4,3953.3,1.22709413]
[1761302451514,1.33967686,3953.4,3953.3,0.77188413]
[1761302451721,1.33967686,3953.4,3953.3,0.22928413]
[1761302451921,1.33967686,3953.4,3953.3,9.17528413]
[1761302452117,1.33967686,3953.4,3953.3,0.22928413]
[1761302453018,1.33967686,3953.4,3953.3,0.77188413]
[1761302455827,1.33967686,3953.4,3953.3,1.22709413]
[1761302458718,0.88447686,3953.4,3953.3,1.22709413]
[1761302458924,0.10447686,3953.4,3953.3,1.22709413]
[1761302460520,0.55967686,3953.4,3953.3,1.22709413]
[1761302461215,0.10447686,3953.4,3953.3,1.22709413]
[1761302463314,0.65357686,3953.4,3953.3,1.22709413]
[1761302465428,0.65357686,3953.4,3953.3,1.90943138]
[1761302468334,1.33507686,3953.4,3953.3,0.77188413]
[1761302468537,1.33507686,3953.4,3953.3,10.39854578]
[1761302469729,1.33507686,3953.4,3953.3,0.00208413]
[1761302471240,1.33507686,3953.4,3953.3,0.54928413]
[1761302472335,1.33507686,3953.4,3953.3,0.23268413]
[1761302472533,1.33507686,3953.4,3953.3,0.00208413]
[1761302473736,1.33507686,3953.4,3953.3,1.00449413]
[1761302474135,1.33507686,3953.4,3953.3,0.00208413]
[1761302474832,2.24120939,3953.4,3953.3,0.00208413]
[1761302476824,0.78216,3952.9,3952.8,0.70796017]
[1761302477021,2.69433565,3952.9,3952.8,0.02529852]
[1761302477225,1.33513686,3952.9,3952.8,0.02529852]
[1761302477936,1.33513686,3952.9,3952.8,0.02810058]
[1761302478133,0.45535,3952.1,3952.0,0.68266165]
[1761302478433,1.23075,3952.1,3952.0,0.5472]
[1761302478625,1.23075,3952.1,3952.0,9.4902]
[1761302478820,1.33460839,3952.1,3952.0,9.4902]
[1761302479027,1.23075,3952.1,3952.0,9.4902]
[1761302479227,1.2325741,3952.1,3952.0,9.49288392]
[1761302479429,1.2325741,3952.1,3952.0,0.00268392]
[1761302479638,1.33638564,3952.1,3952.0,0.00268392]
[1761302481132,1.33638564,3952.1,3952.0,0.45804392]
[1761302481436,1.33638564,3952.1,3952.0,1.00524392]
[1761302481626,1.33638564,3952.1,3952.0,0.23328392]
[1761302481938,1.33638564,3952.1,3952.0,0.00268392]
[1761302482925,1.33638564,3952.1,3952.0,1.22664392]
[1761302483336,1.2325741,3952.1,3952.0,1.22664392]
[1761302483536,1.3361983,3952.1,3952.0,1.22664392]
[1761302484139,1.2325741,3952.1,3952.0,1.22664392]
[1761302486132,0.3287241,3952.1,3952.0,1.35974392]
[1761302486337,0.0018241,3952.1,3952.0,1.35974392]
[1761302487535,0.4571741,3952.1,3952.0,1.35974392]
[1761302487844,0.0018241,3952.1,3952.0,1.35974392]
[1761302488044,0.4571741,3952.1,3952.0,1.35974392]
[1761302488338,0.0018241,3952.1,3952.0,1.35974392]
[1761302505939,0.5652241,3952.1,3952.0,1.22664392]
[1761302506245,0.5652241,3952.1,3952.0,10.16864392]
[1761302506935,0.7882241,3952.1,3952.0,10.16764392]
[1761302510141,0.7882241,3952.1,3952.0,1.22664392]
[1761302510446,0.7882241,3952.1,3952.0,10.16764392]
[1761302511346,0.7882241,3952.1,3952.0,1.22664392]
[1761302511546,0.7882241,3952.1,3952.0,10.16764392]
[1761302512245,0.89006251,3952.1,3952.0,10.16764392]
[1761302513546,0.66706251,3952.1,3952.0,10.16764392]
[1761302513849,0.10366251,3952.1,3952.0,10.29654392]
[1761302514651,0.0018241,3952.1,3952.0,11.20632692]
[1761302519652,0.3306241,3952.1,3952.0,10.29654392]
[1761302520656,1.35011191,3952.1,3952.0,0.23328392]
[1761302520850,1.35011191,3952.1,3952.0,9.17328392]
[1761302521048,1.35011191,3952.1,3952.0,0.23328392]
[1761302521254,1.35011191,3952.1,3952.0,9.17328392]
[1761302521859,1.35011191,3952.1,3952.0,8.94268392]
[1761302523856,1.35011191,3952.1,3952.0,9.15898392]
[1761302524653,1.35011191,3952.1,3952.0,9.61434392]
[1761302525163,1.35011191,3952.1,3952.0,9.15898392]
[1761302525856,1.35011191,3952.1,3952.0,1.00024392]
[1761302526062,1.35011191,3952.1,3952.0,9.93924392]
[1761302526253,1.35011191,3952.1,3952.0,10.17044392]
[1761302528463,1.35011191,3952.1,3952.0,9.84454392]
[1761302528761,1.35011191,3952.1,3952.0,9.61334392]
[1761302529464,1.35011191,3952.1,3952.0,9.15798392]
[1761302529763,1.35011191,3952.1,3952.0,0.00268392]
[1761302530061,1.35011191,3952.1,3952.0,8.94168392]
[1761302532165,0.66346191,3952.1,3952.0,10.17044392]
[1761302533561,1.11881191,3952.1,3952.0,10.17044392]
[1761302533862,0.66346191,3952.1,3952.0,10.17044392]
[1761302534465,1.11881191,3952.1,3952.0,10.17044392]
[1761302535065,0.66346191,3952.1,3952.0,10.17044392]
[1761302537378,0.10376191,3952.1,3952.0,10.30284392]
[1761302537779,0.0018241,3952.1,3952.0,10.30284392]
[1761302539781,0.0018241,3952.1,3952.0,10.98501879]
[1761302540076,0.0018241,3952.1,3952.0,10.30284392]
[1761302540274,0.0018241,3952.1,3952.0,11.21262692]
[1761302540875,0.0018241,3952.1,3952.0,10.30284392]
[1761302545086,0.0018241,3952.1,3952.0,1.36384392]
[1761302545278,0.0018241,3952.1,3952.0,10.30084392]
[1761302545782,0.5615241,3952.1,3952.0,1.23144392]
[1761302546084,0.7928241,3952.1,3952.0,10.85022096]
[1761302546679,0.7928241,3952.1,3952.0,10.98262096]
[1761302546680,0.0018241,3952.1,3952.0,10.98262096]
[1761302549385,0.0018241,3952.1,3952.0,2.04562096]
[1761302549684,0.0018241,3952.1,3952.0,10.30084392]
[1761302553385,0.9742241,3952.1,3952.0,10.30084392]
[1761302555889,0.45521,3953.3,3953.2,0.7886]
[1761302556080,1.33269327,3953.3,3953.2,9.7246]
[1761302556280,1.33269327,3953.3,3953.2,0.7886]
[1761302556585,1.33269327,3953.3,3953.2,0.4397]
[1761302556887,1.33269327,3953.3,3953.2,6.6917]
[1761302556888,1.33532059,3953.3,3953.2,6.6917]
[1761302557990,1.33532059,3953.3,3953.2,7.0406]
[1761302558592,1.33532059,3953.3,3953.2,7.49583]
[1761302559292,1.33532059,3953.3,3953.2,10.17883]
[1761302559992,1.33532059,3953.3,3953.2,1.24383]
[1761302560292,1.33532059,3953.3,3953.2,10.17883]
[1761302561689,0.88011059,3953.3,3953.2,10.17883]
[1761302561886,0.65461059,3953.3,3953.2,10.17883]
[1761302562395,1.10982059,3953.3,3953.2,1.24383]
[1761302562693,1.10982059,3953.3,3953.2,10.17883]
[1761302564197,1.10982059,3953.3,3953.2,1.24383]
[1761302564396,1.10982059,3953.3,3953.2,8.04883]
[1761302568394,0.10271059,3953.3,3953.2,8.04883]
[1761302568592,0.65461059,3953.3,3953.2,8.04883]
[1761302568790,1.10982059,3953.3,3953.2,1.24383]
[1761302568991,0.65461059,3953.3,3953.2,10.17683]
[1761302570800,0.65461059,3953.3,3953.2,1.24383]
[1761302571000,0.65461059,3953.3,3953.2,10.17683]
[1761302571600,0.88011059,3953.3,3953.2,10.17683]
[1761302576805,0.65461059,3953.3,3953.2,10.17683]
[1761302577803,0.10271059,3953.3,3953.2,1.24383]
[1761302578007,0.10271059,3953.3,3953.2,10.17583]
[1761302578199,0.42331059,3953.3,3953.2,10.17583]
[1761302578506,0.10271059,3953.3,3953.2,10.17583]
[1761302582606,0.17953434,3953.6,3953.5,1.38519]
[1761302582804,0.17953434,3953.6,3953.5,10.31619]
[1761302583008,0.5496,3954.0,3953.9,0.7904]
[1761302583313,0.5496,3954.0,3953.9,10.17654]
[1761302583507,0.55242156,3954.0,3953.9,1.24554]
[1761302583806,1.37365156,3954.0,3953.9,9.7214]
[1761302584610,1.37365156,3954.0,3953.9,10.17655]
[1761302585008,1.37365156,3954.0,3953.9,9.7214]
[1761302585314,1.37365156,3954.0,3953.9,10.17655]
[1761302586812,0.91852156,3954.0,3953.9,10.17655]
[1761302587018,0.00282156,3954.0,3953.9,10.17555]
[1761302587908,0.32192156,3954.0,3953.9,10.17555]
[1761302588216,1.23655156,3954.0,3953.9,10.17555]
[1761302590216,1.23655156,3954.0,3953.9,0.7904]
[1761302590217,1.37365156,3954.0,3953.9,0.7904]
[1761302590519,1.37365156,3954.0,3953.9,9.7204]
[1761302594318,1.37365156,3954.0,3953.9,10.17555]
[1761302594519,1.47499274,3954.0,3953.9,10.17555]
[1761302596422,1.47499274,3954.0,3953.9,1.24555]
[1761302596624,1.47499274,3954.0,3953.9,8.52055]
[1761302597216,1.47499274,3954.0,3953.9,8.0654]
[1761302598324,2.38188078,3954.0,3953.9,8.0654]
[1761302598724,2.38188078,3954.0,3953.9,8.52055]
[1761302601327,2.38188078,3954.0,3953.9,8.0654]
[1761302603929,2.38188078,3954.0,3953.9,8.52055]
[1761302605328,1.47499274,3954.0,3953.9,8.52055]
[1761302605729,1.33789274,3954.0,3953.9,8.52055]
[1761302606023,0.55929274,3954.0,3953.9,8.52055]
[1761302610517,0.10416274,3954.0,3953.9,8.52055]
[1761302610827,0.10416274,3954.0,3953.9,9.20275926]
[1761302611925,8.2916034,3955.5,3954.6,0.4531]
[1761302612131,0.3419,3955.4,3955.3,0.45498]
[1761302612328,0.3419,3955.4,3955.3,9.38198]
[1761302613032,0.3445766,3955.4,3955.3,9.3845365]
[1761302623544,0.0026766,3955.4,3955.3,9.3845365]
[1761302624036,0.1351,3955.0,3954.8,0.6819851]
[1761302624238,0.9203,3954.5,3954.4,0.45509]
[1761302624431,0.9203,3954.5,3954.4,4.644]
[1761302624640,0.477,3954.5,3954.4,5.09909]
[1761302625145,0.1351,3955.0,3954.9,0.45503]
[1761302625344,0.1351,3955.0,3954.9,9.37803]
[1761302625543,0.477,3955.0,3954.9,9.37803]
[1761302625746,0.3419,3955.3,3955.2,0.455]
[1761302625936,0.3419,3955.3,3955.2,9.378]
[1761302626142,0.3419,3955.3,3955.2,0.455]
[1761302626343,0.3419,3955.3,3955.2,9.378]
[1761302627151,0.1351,3955.0,3954.8,1.1376]
[1761302627353,0.0026766,3955.4,3955.3,0.45498]
[1761302627552,0.0026766,3955.4,3955.3,9.37698]
[1761302628054,0.3445766,3955.4,3955.3,9.37698]
[1761302641363,0.3445766,3955.4,3955.3,10.0589651]
[1761302643767,0.0026766,3955.4,3955.3,10.0589651]
[1761302644065,0.0026766,3955.4,3955.3,9.37698]
[1761302644261,3.2078,3955.5,3955.4,0.45497]
[1761302644465,0.81689,3955.5,3955.4,10.2838488]
[1761302644660,0.1371,3956.0,3955.6,1.13736]
[1761302644856,0.1371,3956.0,3955.9,1.1365337]
[1761302645567,0.13993717,3956.0,3955.9,1.36373826]
[1761302646266,0.1351,3956.5,3956.4,0.45486]
[1761302646569,0.4846,3956.5,3956.4,10.05568588]
[1761302646764,0.4846,3956.5,3956.4,9.37486]
[1761302647163,0.48689971,3956.5,3956.4,10.28262785]
[1761302647362,0.48689971,3956.5,3956.4,9.37486]
[1761302647557,0.48689971,3956.5,3956.4,10.28262785]
[1761302647771,0.48689971,3956.5,3956.4,9.37486]
[1761302650263,0.48689971,3956.5,3956.4,10.05413104]
[1761302651073,0.48689971,3956.5,3956.4,9.37486]
[1761302652369,0.48689971,3956.5,3956.4,10.05371365]
[1761302655377,0.48689971,3956.5,3956.4,9.37486]
[1761302660281,0.48689971,3956.5,3956.4,10.05371365]
[1761302661079,0.48689971,3956.5,3956.4,9.37486]
[1761302661280,0.48689971,3956.5,3956.4,10.05371365]
[1761302661777,0.48689971,3956.5,3956.4,9.37486]
[1761302662286,0.48689971,3956.5,3956.4,10.05371365]
[1761302663082,0.48689971,3956.5,3956.4,9.37486]
[1761302663375,0.48689971,3956.5,3956.4,10.05371365]
[1761302665377,0.48689971,3956.5,3956.4,9.37486]
[1761302665883,0.48689971,3956.5,3956.4,9.37086]
[1761302667282,0.48689971,3956.5,3956.4,10.27731286]
[1761302668677,0.1351,3957.0,3956.9,0.4548]
[1761302668877,0.1351,3957.0,3956.9,10.0504154]
[1761302669279,0.1351,3957.0,3956.9,9.3708]
[1761302669786,0.13733786,3957.0,3956.9,9.3708]
[1761302670891,0.46673786,3957.0,3956.9,9.3708]
[1761302672382,0.46673786,3957.0,3956.9,10.27695386]
[1761302672582,0.46673786,3957.0,3956.9,9.3708]
[1761302673283,0.46673786,3957.0,3956.9,10.27695386]
[1761302673984,0.69043786,3957.0,3956.9,10.27595386]
[1761302674287,0.69043786,3957.0,3956.9,9.3698]
[1761302674889,0.46673786,3957.0,3956.9,9.3698]
[1761302675284,0.46673786,3957.0,3956.9,10.73152602]
[1761302675582,0.46673786,3957.0,3956.9,9.3698]
[1761302676383,0.46673786,3957.0,3956.9,10.73152602]
[1761302680494,0.69043786,3957.0,3956.9,9.3698]